Workbook

Sheet INFO
A1: Intended use of this document Those responsible for the drafting of actual individual EPB standards shall - read and understand the following documents - prCEN/TS 16628 Basic Principles (in short "BP") - prCEN/TS 16629 Detailed Technical Rules (in short "DTR") - prEN 15603:2013 ("Overarching Standard", in short "OA")) - prCEN/TR 15615:2013 Technical report to overarching standard; - Prepare their individual EPB standard according to CEN rules, BP, DTR and OA - Prepare the accompanying technical report using the dedicated template - Prepare an accompanying XLS spreadsheet, to demonstrate inputs, output and calculation chain. This sample excel spreadsheet provides a template to help in this task.
A2: Why an Excel spradsheet? To demonstrate the validity and required data I/O for the calculation procedure defined in the standard: - list of all input needed --> sheet "Method_input" - list of intended output --> sheet "Method_output" - calculation sequence --> sheet "Method_calculation"
A3: The example is prepared for a simple procedure. The sheet calculation may need extensions such as: - using several columns when operating on arrays - refering to a subset of sheets input/calculation/output to describe a subroutine For complex tasks MACRO can be used. This sheet does not support calculation methods that take into account data in a different time-step than that that is being calculated. A version that allows taking into account values at previous time step will be developed.
A4: LIST SHEETS
A5: Simplified_input_correlation Use this sheet to demontrate simplified input correlation, if any in your standard. Typically these correlations are defined in annex C of the standard. They provide the normal detailed input of a procedure, based on a simplified input data set.
A6: Product_descriptive_data Use this sheet to list product descriptive data (typically with case identifiers). Some examples of selection tables are given. The output from the selection tables (green cells) can be linked to the sheet "method_input" for use in the procedure.
A7: Product_tech_data Use this sheet to list product technical data (typically numerical values and data). Some examples are given with default that may be typically included in annex A of the standard. The output from the selection tables (green cells) can be linked to the sheet "method_input" for use in the procedure.
A8: Process_design_data Use this sheet to list system descriptive data (typically with case identifiers). Some examples of selection tables are given. The output from the selection tables (green cells) can be linked to the sheet "method_input" for use in the procedure.
A9: Data_catalogue_example It is an example of how a data catalogue can work, filtering the catalogue of product properties based on product descriptive data. You can optionally build a similar catalogue for products involved in your standard.
A10: Input_series Prepare in this sheet data for each time step if you want to test the procedure on more steps.
A11: Method_input List in this sheet all the input required for the calculation in one time step. THIS SHEET IS REQUIRED TO DEMONSTRATE THE REQUIRED DATA INPUT.
A12: Method_calculation Detail in this sheet your calculation procedure. There should be one calculation in one cell for each equation in the standard. THIS SHEET IS REQUIRED TO DEMONSTRATE THE CALCULATION PROCEDURE.
A13: Method_output List in this sheet all the intended output of the procedure. THIS SHEET IS REQUIRED TO DEMONSTRATE THE AVAILABLE DATA OUTPUT.
A14: Output_series Series alculation results are stored in this sheet. Calculation for each time step is launched in this sheet.
A15: Greek_to_soft This sheet includes the correspondence table between greek letters and software language coding of variables
A16: Symbols This sheet includes common symbols for reference.
A17: Subs buildings This sheet includes relevant common symbols for the building domain
A18: Subs systems This sheet includes relevant common symbols for the technical systems domain
A19: Subs del_EP This sheet includes relevant common symbols for the assessment boundary energy flows
A20: Subs others This sheet includes relevant common symbols for other general purposes (typically futher levels appended to previously defined subscripts)
A21: Hostory Changes in this sheet according to revisions

Sheet Simplified_input_correlation
A1: Create here a simulation of each correlation method in your Annex C, if any
A4: Name | B4: Symbol | C4: Unit | D4: Value | E4: Range | F4: Formula ref. | G4: Formula | H4: Notes
A5: Input data
A6: Length of the building | B6: lL | C6: m | D6: 30 | E6: 4…100
A7: Width of the building | B7: lW | C7: m | D7: 20 | E7: 4…20
A8: Number of loors | B8: Nlev | C8: - | D8: 3 | E8: 1…10
A9: Floor heigth | B9: Hfl | C9: m | D9: 3.1 | E9: 2…5
A12: METHOD
A14: Detail all formulas
A15: Length of connection of radiators to vertical shafts | B15: lA | C15: m | D15: =0.55*Method_in*D7*D8 -> 990
A16: Length of vertical shafts | B16: lS | C16: m | D16: =0.025*Method_in*D7*D8*D9 -> 139.5
A17: Length of base collector | B17: lV | C17: m | D17: =2*Method_in+0.01625*Method_in*D7*D7 -> 255
A18: …
A20: Output data
A21: Length of shafts | B21: lS | C21: m | D21: =+D16 -> 139.5 | E21: 0...∞
A22: diameter of shafts | B22: dS | C22: m | E22: 0…0,2
A23: Length of base ring | B23: lB | C23: m | D23: =+D17 -> 255 | E23: 0...∞
A24: diameter of base ring | B24: dB | C24: m | E24: 0…0,2

Sheet Product_descriptive_data
A1: Example of descriptive data. In a simple structure, this can be connected directly to the "method_input" sheet where this data is required. In this example spreadsheet the "Method_input" is linked to the "data_catalogue".
A6: Product descriptive data (qualitative)
A8: Boiler type, condensing / non condensing
A9: 1 | B9: BLR_TYPE | C9: =INDEX(C11:C13,A9) -> BLR_TYPE_COND
A11: Condensing | C11: BLR_TYPE_COND
A12: Low temperature | C12: BLR_TYPE_LTMP
A13: Standard | C13: BLR_TYPE_STND
A16: Boiler use
A17: 1 | B17: BLR_USE | C17: =INDEX(C19:C22,A17) -> BLR_USE_H
A19: Heating | C19: BLR_USE_H
A20: Domestic hot water | C20: BLR_USE_W
A21: Cooling | C21: BLR_USE_C
A22: All | C22: BLR_USE_ALL
A25: Fuel
A26: 1 | B26: BLR_FUEL | C26: =INDEX(C28:C31,A26) -> BLR_FUEL_GAS
A28: Gas | C28: BLR_FUEL_GAS
A29: LPG | C29: BLR_FUEL_LPG
A30: Oil | C30: BLR_FUEL_OIL
A31: Biomass | C31: BLR_FUEL_BM
A34: CE Marking
A35: 1 | B35: BLR_CE | C35: =INDEX(C37:C38,A35) -> BLR_DATA_YES
A37: Boiler is marked CE | C37: BLR_DATA_YES
A38: Boiler is NOT marked CE | C38: BLR_DATA_NO
A41: Burner control type
A42: 1 | B42: BLR_CTRL_POW | C42: =INDEX(C44:C46,A42) -> BLR_CTRL_POW_ONOF
A44: Single stage control (ON-OFF) | C44: BLR_CTRL_POW_ONOF
A45: Stepped control | C45: BLR_CTRL_POW_STEP
A46: Modulating control | C46: BLR_CTRL_POW_MOD

Sheet Product_tech_data
A1: EXAMPLE OF A SHEET WITH DEFAULT INPUT Create here a simulation of each default data formula given in annex A of the standard. Optionally connect the selected values to the detailed input data selection sheet (detailed input)
A5: A.1.2.1 Generator output at full load; | B5: ФPn | C5: kW | D5: 60
A8: A.1.2.2 Generator efficiency at full load | B8: ηgnr;Pn | C8: % | D8: =+IF(D10<D29,D27+D28*LOG10(D10),D27+D28*LOG10(D29)) -> 88.5563025
A9: Known input
A10: Generator output at full load; | B10: ФPn | C10: kW | D10: =+D5 -> 60
A12: Base formula
A14: Data table
A15: Data | C15: c1 | D15: c2
A16: Unit | C16: % | D16: %
A17: Gas standard boiler | C17: 85 | D17: 2
A18: Gas low temperature boiler | C18: 88.5 | D18: 1.5
A19: Gas condensing boiler | C19: 92 | D19: 1
A20: Oil standard boiler | C20: 85 | D20: 2
A21: Oil low temperature boiler | C21: 88 | D21: 1.5
A22: Oil condensing boiler | C22: 92 | D22: 1
A23: My boiler with fixed value (c2 = 0) | C23: 91 | D23: 0
A24: Last boiler | C24: 50 | D24: 0
A25: Your selection
A26: Selection index | D26: 1
A27: c1 | C27: % | D27: =INDEX(C17:C24,D26) -> 85
A28: c2 | C28: % | D28: =INDEX(D17:D24,D26) -> 2
A29: Maximum kW | C29: kW | D29: 400
A31: A.1.2.3 Generator output at intermediate load; | B31: ФPint | C31: kW | D31: =+D5*0.3 -> 18
A34: A.1.2.4 Generator efficiency at intermediate load | B34: ηgnr,Pint | C34: % | D34: =+IF(D36<D55,D53+D54*LOG10(D36),D53+D54*LOG10(D55)) -> 91.66722688
A35: Known input
A36: Generator output at full load; | B36: ФPn | C36: kW | D36: =+D5 -> 60
A38: Base formula
A40: Data table
A41: Data | C41: c3 | D41: c4
A42: Unit | C42: % | D42: %
A43: Gas standard boiler | C43: 81.5 | D43: 3
A44: Gas low temperature boiler | C44: 89 | D44: 1.5
A45: Gas condensing boiler | C45: 98 | D45: 1
A46: Oil standard boiler | C46: 81 | D46: 2
A47: Oil low temperature boiler | C47: 89 | D47: 1.5
A48: Oil condensing boiler | C48: 96 | D48: 1
A49: My boiler with fixed value (c2 = 0) | C49: 87 | D49: 0
A50: Last boiler | C50: 50 | D50: 0
A51: Your selection
A52: Selection index | D52: 2
A53: c3 | C53: % | D53: =INDEX(C43:C50,D52) -> 89
A54: c4 | C54: % | D54: =INDEX(D43:D50,D52) -> 1.5
A55: Maximum kW | C55: kW | D55: 400
A58: A.1.2.5 Stand-by heat losses | B58: Фgen,ls,P0 | C58: kW | D58: =D60*(D77/100)*(D60^D78) -> 0.9
A59: Known input
A60: Generator output at full load; | B60: ФPn | C60: kW | D60: =+D5 -> 60
A62: Base formula
A64: Data table
A65: Data | C65: c5 | D65: c6
A66: Unit | C66: - | D66: -
A67: Gas standard boiler | C67: 8.5 | D67: -0.4
A68: Gas low temperature boiler | C68: 6.5 | D68: -0.35
A69: Gas condensing boiler | C69: 4.8 | D69: -0.35
A70: Oil standard boiler | C70: 8.5 | D70: -0.4
A71: Oil low temperature boiler | C71: 6.5 | D71: -0.35
A72: Oil condensing boiler | C72: 4.8 | D72: -0.35
A73: My boiler (direct proportion to power if c6 set to 0) | C73: 1.5 | D73: 0
A74: Last boiler | C74: 2 | D74: 0
A75: Your selection
A76: Selection index | D76: 7
A77: c7 | C77: % | D77: =INDEX(C67:C74,D76) -> 1.5
A78: c8 | C78: % | D78: =INDEX(D67:D74,D76) -> 0
A81: A.1.2.6 Generator auxiliaries at full load | B81: Фaux,Pn | C81: W | D81: =D99+D100*(D85^D101) -> 321.1627101
A82: A.1.2.6 Generator auxiliaries at part load | B82: Фaux,Pint | C82: W | D82: =G99+G100*(D85^G101) -> 107.0542367
A83: A.1.2.6 Generator auxiliaries at no load | B83: Фaux,P0 | C83: W | D83: =J99+J100*(D85^J101) -> 15
A84: Known input
A85: Generator output at full load; | B85: ФPn | C85: kW | D85: =+D5 -> 60
A87: Base formula
A89: Data table | B89: Full power | E89: Intermediate power | H89: No load
A90: Data | B90: n | C90: c7 | D90: c8 | E90: n | F90: c7 | G90: c8 | H90: n | I90: c7 | J90: c8
A91: Unit | B91: - | C91: W | D91: W | F91: - | G91: . | I91: - | J91: .
A92: Gas atmospheric boiler | B92: 1 | C92: 40 | D92: 0.148 | E92: 1 | F92: 40 | G92: 0.148 | H92: 0 | I92: 15 | J92: 0
A93: Forced draught boiler | B93: 0.48 | C93: 0 | D93: 45 | E93: 0.48 | F93: 0 | G93: 15 | H93: 0.48 | I93: 15 | J93: 0
A94: Condensing boiler | B94: 0.48 | C94: 0 | D94: 45 | E94: 0.48 | F94: 0 | G94: 15 | H94: 0 | I94: 15 | J94: 0
A95: My boiler with fixed value (n = 1) | B95: 1 | C95: 0 | D95: 20 | E95: 1 | F95: 0 | G95: 10 | H95: 0 | I95: 10 | J95: 0
A96: Last boiler | B96: 1 | C96: 0 | D96: 20 | E96: 1 | F96: 0 | G96: 10 | H96: 0 | I96: 10 | J96: 0
A97: Your selection
A98: Selection index | D98: 2 | G98: =+D98 -> 2 | J98: =+G98 -> 2
A99: c7 | C99: W | D99: =INDEX(C92:C96,D98) -> 0 | F99: W | G99: =INDEX(F92:F96,G98) -> 0 | I99: W | J99: =INDEX(I92:I96,J98) -> 15
A100: c8 | C100: W | D100: =INDEX(D92:D96,D98) -> 45 | F100: W | G100: =INDEX(G92:G96,G98) -> 15 | I100: W | J100: =INDEX(J92:J96,J98) -> 0
A101: n | C101: - | D101: =INDEX(B92:B96,D98) -> 0.48 | F101: - | G101: =INDEX(E92:E96,G98) -> 0.48 | I101: - | J101: =INDEX(H92:H96,J98) -> 0.48
A104: A.1.2.1 Recoverable fraction of heat losses | B104: ФPn | C104: kW | D104: 60
A106: Efficiency correction factor at full load | B106: fcorr,Pn | C106: %/°C | D106: =+D124 -> 0.04
A107: Efficiency correction factor at part load | B107: fcorr,Pint | C107: %/°C | D107: =+D125 -> 0.05
A108: Known input
A109: Generator output at full load; | B109: ФPn | C109: kW | D109: =+D53 -> 89
A111: Base formula
A113: Data table
A114: Data | C114: fcorr,Pn | D114: fcorr,Pint
A115: Unit | C115: %/°C | D115: %/°C
A116: Standard boiler | C116: 0.04 | D116: 0.05
A117: Low temperature boiler | C117: 0.04 | D117: 0.05
A118: Gas condensing boiler | C118: 0.2 | D118: 0.2
A119: Oil condensing boiler | C119: 0.1 | D119: 0.1
A120: My boiler | C120: 0.04 | D120: 0.05
A121: Last boiler | C121: 0.04 | D121: 0.05
A122: Your selection
A123: Selection index | D123: 6
A124: c7 | C124: %/°C | D124: =INDEX(C116:C121,D123) -> 0.04
A125: c8 | C125: %/°C | D125: =INDEX(D116:D121,D123) -> 0.05
A128: Minimum boiler operating temperature | B128: θgnr,min | C128: °C | D128: =IF(Product_descriptive_data!C9=Product_descriptive_data!C13,50,0) -> 0
A130: Recoverable fraction of stand-by losses | B130: fgnr,env | C130: - | D130: 0.5
A132: generator average water temperature at test conditions for full load; | B132: θgnr,test,Pn | C132: °C | D132: 70
A134: generator average water temperature at test conditions for intermediate load; | B134: θgnr,test,Pint | C134: °C | D134: 50
A136: difference between mean boiler temperature and test room temperature in test conditions; | B136: Dθtest,P0 | C136: °C | D136: =IF(Product_descriptive_data!C43=Product_descriptive_data!C47,50,0) -> 50
A138: part of the auxiliary energy recovered | B138: frvd,aux | C138: - | D138: 0.75
A140: part of the nominal electrical power not transmitted to the distribution sub-system | B140: frbl,aux | C140: - | D140: 0.25

Sheet Process_design_data
A1: Example of process design data. In a simple structure, this can be connected directly to the "method_input" sheet where this data is required. In this example spreadsheet the "Method input" is linked to the detailed input.
A6: Process design data (qualitative)
A8: Boiler location (installation position)
A9: 2 | B9: BLR_LOC | C9: =INDEX(C11:C14,A9) -> BLR_LOC_UNH | E9: qi,brm | F9: bbrm
E10: °C | F10: -
A11: Heated space | C11: BLR_LOC_INT | E11: 20 | F11: 0
A12: Unheated room | C12: BLR_LOC_UNH | E12: 5 | F12: 0.5
A13: Boiler room | C13: BLR_LOC_BLR | E13: 15 | F13: 0.7
A14: External | C14: BLR_LOC_EXT | E14: -10 | F14: 1
A15: Selected value | E15: =INDEX(E11:E14,$A$9) -> 5 | F15: =INDEX(F11:F14,$A$9) -> 0.5
A18: Boiler hydraulic connection
A19: 1 | B19: BLR_HCON | C19: =INDEX(C21:C24,A19) -> BLR_HCON_DIR
A21: Direct connection | C21: BLR_HCON_DIR
A22: Hydraulic decoupling (independent flow rate) | C22: BLR_HCON_DEC
A23: Direct, with condensate prevention pump | C23: BLR_HCON_NCP
A24: Heat exchanger | C24: BLR_HCON_HEX

Sheet Data_catalogue_example
A1: EXAMPLE OF A PRODUCT DATA CATALOGUE Product descriptive data is used to filter the actual catalogue. Unsuitable prioducts are indicated by "Non available" The desired product in the catalogue is then selected via the main list --> alla data is available with one click. NOTE: Default data are also part of the catalogue. This sample catalogue is connected to the "Method input" sheet. NOTE: This highlights the high importance of the user interface and of a correct data input structuring. | J1: DATA FOR EACH BOILER | W1: SELECTION OF BOILERS COMPATIBLE WITH THE QUALITATIVE DESCRIPTION
A4: Product descriptive data (qualitative)
A6: Boiler use
A7: 1 | C7: BLR_USE | D7: =INDEX(D9:D11,A7) -> BLR_USE_H
A9: Heating | D9: BLR_USE_H
A10: Domestic hot water | D10: BLR_USE_DHW
A11: All | D11: BLR_USE_ALL
A14: Fuel
A15: 1 | C15: BLR_FUEL | D15: =INDEX(D17:D19,A15) -> BLR_FUEL_GAS
A16: Values
A17: Gas | D17: BLR_FUEL_GAS
A18: Oil | D18: BLR_FUEL_OIL
A19: All | D19: BLR_FUEL_ALL
A22: Boiler type, condensing / non condensing
A23: 2 | C23: BLR_COND | D23: =INDEX(D25:D26,A23) -> BLR_COND_NO
A24: Values
A25: Condensing | D25: BLR_COND_YES
A26: Non condensing | D26: BLR_COND_NO
A29: Product technical data
A31: Generator output at full load; | E31: ФPn | F31: kW | G31: 60
A34: Boiler product data | C34: BLR_DATA | D34: =INDEX(D38:D49,C36) -> BLR_DATA_GAS_LT
C36: 2
A37: Values | W37: Display ? | X37: Condensing ? | Z37: Fuel ? | AB37: Condition 3? | AD37: Condition 4?
A38: =IF(W38,B38,"NOT COMPATIBLE") -> Gas, standard, minimum value | B38: Gas, standard, minimum value | D38: BLR_DATA_GAS_STD | W38: =AND(X38,Z38,AB38,AD38) -> TRUE | X38: =$D$23=Y38 -> TRUE | Y38: BLR_COND_NO | Z38: =OR($D$15=$D$19,$D$15=AA38) -> TRUE | AA38: BLR_FUEL_GAS | AB38: TRUE | AD38: TRUE
A39: =IF(W39,B39,"NOT COMPATIBLE") -> Gas, low temperature, minimum value | B39: Gas, low temperature, minimum value | D39: BLR_DATA_GAS_LT | W39: =AND(X39,Z39,AB39,AD39) -> TRUE | X39: =$D$23=Y39 -> TRUE | Y39: BLR_COND_NO | Z39: TRUE | AA39: BLR_FUEL_GAS | AB39: TRUE | AD39: TRUE
A40: NOT COMPATIBLE | B40: Gas, Condensing, minimum value | D40: BLR_DATA_GAS_CND | W40: FALSE | X40: FALSE | Y40: BLR_COND_YES | Z40: TRUE | AA40: BLR_FUEL_GAS | AB40: TRUE | AD40: TRUE
A41: NOT COMPATIBLE | B41: Oil, standard, minimum value | D41: BLR_DATA_OIL_STD | W41: FALSE | X41: TRUE | Y41: BLR_COND_NO | Z41: FALSE | AA41: BLR_FUEL_OIL | AB41: TRUE | AD41: TRUE
A42: NOT COMPATIBLE | B42: Oil, low temperature, minimum value | D42: BLR_DATA_OIL_LT | W42: FALSE | X42: TRUE | Y42: BLR_COND_NO | Z42: FALSE | AA42: BLR_FUEL_OIL | AB42: TRUE | AD42: TRUE
A43: NOT COMPATIBLE | B43: Oil, condensing, minimum value | D43: BLR_DATA_OIL_CND | W43: FALSE | X43: FALSE | Y43: BLR_COND_YES | Z43: FALSE | AA43: BLR_FUEL_OIL | AB43: TRUE | AD43: TRUE
A44: NOT COMPATIBLE | B44: Default national: 1 - old oil boiler | D44: BLR_DATA_NAT_1 | W44: FALSE | X44: TRUE | Y44: BLR_COND_NO | Z44: FALSE | AA44: BLR_FUEL_OIL | AB44: TRUE | AD44: TRUE
A45: Default national: 2 - old gas boiler | B45: Default national: 2 - old gas boiler | D45: BLR_DATA_NAT_2 | W45: TRUE | X45: TRUE | Y45: BLR_COND_NO | Z45: TRUE | AA45: BLR_FUEL_GAS | AB45: TRUE | AD45: TRUE
A46: Default national: 3 - new boiler | B46: Default national: 3 - new boiler | D46: BLR_DATA_NAT_3 | W46: TRUE | X46: TRUE | Y46: BLR_COND_NO | Z46: TRUE | AA46: BLR_FUEL_GAS | AB46: TRUE | AD46: TRUE
A47: Make 1 boiler 1 gas (catalogue) | B47: Make 1 boiler 1 gas (catalogue) | D47: BLR_DATA_CAT_01 | W47: TRUE | X47: TRUE | Y47: BLR_COND_NO | Z47: TRUE | AA47: BLR_FUEL_GAS | AB47: TRUE | AD47: TRUE
A48: NOT COMPATIBLE | B48: Make 1 boiler 2 oil (catalogue) | D48: BLR_DATA_CAT_02 | W48: FALSE | X48: TRUE | Y48: BLR_COND_NO | Z48: FALSE | AA48: BLR_FUEL_OIL | AB48: TRUE | AD48: TRUE
A49: Custom values | B49: Custom values | D49: BLR_DATA_USR | W49: TRUE | X49: TRUE | Y49: BLR_COND_NO | Z49: TRUE | AA49: BLR_FUEL_GAS | AB49: TRUE | AD49: TRUE
A52: System design data
A54: Localisation | C54: LOC | D54: =INDEX(D57:D60,C55) -> LOC_INT
C55: 1
A56: Values
A57: Heated space | D57: LOC_INT
A58: Unheated space | D58: LOC_UNH
A59: Boiler room | D59: LOC_BLR
A60: External | D60: LOC_EXT
A63: Operating conditions
A66: Direct connection
A67: Independent flow rate
A68: Heat exchanger
A69: Last option
A72: Description | C72: Variable TAG | D72: Option tag | E72: Symbol | F72: Unit | G72: Value | H72: Range | J72: =+D38 -> BLR_DATA_GAS_STD | K72: =+D39 -> BLR_DATA_GAS_LT | L72: =+D40 -> BLR_DATA_GAS_CND | M72: =+D41 -> BLR_DATA_OIL_STD | N72: =+D42 -> BLR_DATA_OIL_LT | O72: =+D43 -> BLR_DATA_OIL_CND | P72: =+D44 -> BLR_DATA_NAT_1 | Q72: =+D45 -> BLR_DATA_NAT_2 | R72: =+D46 -> BLR_DATA_NAT_3 | S72: =+D47 -> BLR_DATA_CAT_01 | T72: =+D48 -> BLR_DATA_CAT_02 | U72: =+D49 -> BLR_DATA_USR
A73: generator output at full load; | E73: ФPn | F73: kW | G73: =INDEX(J73:U73,1,$C$36) -> 60 | J73: =+$G$31 -> 60 | K73: 60 | L73: 60 | M73: 60 | N73: 60 | O73: 60 | P73: 60 | Q73: 60 | R73: 60 | S73: 45 | T73: 30 | U73: =+$G$31 -> 60
A74: Boiler type | G74: =INDEX(J74:U74,1,$C$36) -> BLR_COND_NO | J74: BLR_COND_NO | K74: BLR_COND_NO | L74: BLR_COND_YES | M74: BLR_COND_NO | N74: BLR_COND_NO | O74: BLR_COND_YES | P74: BLR_COND_NO | Q74: BLR_COND_NO | R74: BLR_COND_NO | S74: BLR_COND_NO | T74: BLR_COND_NO | U74: BLR_COND_YES
A75: Fuel type | G75: =INDEX(J75:U75,1,$C$36) -> BLR_FUEL_GAS | J75: BLR_FUEL_GAS | K75: BLR_FUEL_GAS | L75: BLR_FUEL_GAS | M75: BLR_FUEL_OIL | N75: BLR_FUEL_OIL | O75: BLR_FUEL_OIL | P75: BLR_FUEL_OIL | Q75: BLR_FUEL_GAS | R75: BLR_FUEL_GAS | S75: BLR_FUEL_GAS | T75: BLR_FUEL_OIL | U75: BLR_FUEL_GAS
A76: CE marking | G76: =INDEX(J76:U76,1,$C$36) -> BLR_CE_YES | J76: BLR_CE_YES | K76: BLR_CE_YES | L76: BLR_CE_YES | M76: BLR_CE_YES | N76: BLR_CE_YES | O76: BLR_CE_YES | P76: BLR_CE_YES | Q76: BLR_CE_YES | R76: BLR_CE_YES | S76: BLR_CE_YES | T76: BLR_CE_NO | U76: BLR_CE_YES
A77: Limited power | E77: ФPn,ltd | F77: kW | J77: =IF(J73>400,400,J73) -> 60 | K77: =IF(K73>400,400,K73) -> 60 | L77: 60 | M77: 60 | N77: 60 | O77: 60 | P77: 60 | Q77: 60 | R77: 60 | S77: 45 | T77: 30 | U77: 60
E78: C1 | F78: % | J78: 85 | K78: 88 | L78: 94 | M78: 85 | N78: 88 | O78: 94 | P78: 92 | Q78: 91 | R78: 93
E79: C2 | F79: % | J79: 2 | K79: 1.5 | L79: 1 | M79: 2 | N79: 1.5 | O79: 1 | P79: 0 | Q79: 0 | R79: 0
A80: generator efficiency at full load; | E80: ηgnr,Pn | F80: % | G80: =INDEX(J80:U80,1,$C$36) -> 90.66722688 | J80: =J78+J79*LOG10(J77) -> 88.5563025 | K80: =K78+K79*LOG10(K77) -> 90.66722688 | L80: 95.77815125 | M80: 88.5563025 | N80: 90.66722688 | O80: 95.77815125 | P80: 92 | Q80: 91 | R80: 93 | S80: 94 | T80: 92 | U80: 93
A81: generator output at intermediate load; | E81: ФPint | F81: kW | G81: =INDEX(J81:U81,1,$C$36) -> 18 | J81: =+J73*0.3 -> 18 | K81: =+K73*0.3 -> 18 | L81: 18 | M81: =+M73*0.3 -> 18 | N81: =+N73*0.3 -> 18 | O81: =+O73*0.3 -> 18 | P81: 18 | Q81: 18 | R81: 18 | S81: 13.5 | T81: 9 | U81: 18
E82: C3 | F82: % | J82: 81.5 | K82: 89 | L82: 98 | M82: 81.5 | N82: 89 | O82: =98/1.05 -> 93.33333333 | P82: 90 | Q82: 89 | R82: 91
E83: C4 | F83: % | J83: 3 | K83: 1.5 | L83: 1 | M83: 3 | N83: 1.5 | O83: =1/1.05 -> 0.9523809524 | P83: 0 | Q83: 0 | R83: 0
A84: generator efficiency at intermediate load; | E84: ηgnr,Pint | F84: % | G84: =INDEX(J84:U84,1,$C$36) -> 91.66722688 | J84: =J82+J83*LOG10(J77) -> 86.83445375 | K84: =K82+K83*LOG10(K77) -> 91.66722688 | L84: 99.77815125 | M84: 86.83445375 | N84: 91.66722688 | O84: 95.02681071 | P84: 90 | Q84: 89 | R84: 91 | S84: 94 | T84: 92 | U84: 93
E85: C5 | F85: % | J85: 8.5 | K85: 5 | L85: 4.8 | M85: 8.5 | N85: 5 | O85: 4.8 | P85: 5 | Q85: 5 | R85: 5
E86: C6 | F86: % | J86: -0.4 | K86: -0.35 | L86: -0.35 | M86: -0.4 | N86: -0.35 | O86: -0.35 | P86: -0.35 | Q86: -0.35 | R86: -0.35
A87: stand-by heat loss at test temperature difference Dθi,test; | E87: Фgnr,ls,P0 | F87: kW | G87: =INDEX(J87:U87,1,$C$36) -> 0.7157614713 | J87: =+J73*(J85/100)*(J73^J86) -> 0.9915387147 | K87: 0.7157614713 | L87: 0.6871310125 | M87: =+M73*(M85/100)*(M73^M86) -> 0.9915387147 | N87: =+N73*(N85/100)*(N73^N86) -> 0.7157614713 | O87: =+O73*(O85/100)*(O73^O86) -> 0.6871310125 | P87: 0.7157614713 | Q87: 0.7157614713 | R87: 0.7157614713 | S87: 0.5 | T87: 0.6 | U87: 0.4
E88: C7 | F88: W | J88: 0 | K88: 0 | L88: 0 | M88: 0 | N88: 0 | O88: 0 | P88: 0 | Q88: 0 | R88: 0
E89: C8 | F89: W | J89: 45 | K89: 45 | L89: 45 | M89: 45 | N89: 45 | O89: 45 | P89: 45 | Q89: 45 | R89: 45
E90: n | F90: - | J90: 0.48 | K90: 0.48 | L90: 0.48 | M90: 0.48 | N90: 0.48 | O90: 0.48 | P90: 0.48 | Q90: 0.48 | R90: 0.48
A91: power consumption of auxiliary devices at full load; | E91: Paux,gnr,Pn | F91: kW | G91: =INDEX(J91:U91,1,$C$36) -> 0.3211627101 | J91: =(+J88+J89*J73^J90)/1000 -> 0.3211627101 | K91: 0.3211627101 | L91: 0.3211627101 | M91: =(+M88+M89*M73^M90)/1000 -> 0.3211627101 | N91: =(+N88+N89*N73^N90)/1000 -> 0.3211627101 | O91: =(+O88+O89*O73^O90)/1000 -> 0.3211627101 | P91: 0.3211627101 | Q91: 0.3211627101 | R91: 0.3211627101 | S91: 0.3 | T91: 0.4 | U91: 0.6
E92: C7 | F92: W | J92: 0 | K92: 0 | L92: 0 | M92: 0 | N92: 0 | O92: 0 | P92: 0 | Q92: 0 | R92: 0
E93: C8 | F93: W | J93: 15 | K93: 15 | L93: 15 | M93: 15 | N93: 15 | O93: 15 | P93: 15 | Q93: 15 | R93: 15
E94: n | F94: - | J94: 0.48 | K94: 0.48 | L94: 0.48 | M94: 0.48 | N94: 0.48 | O94: 0.48 | P94: 0.48 | Q94: 0.48 | R94: 0.48
A95: power consumption of auxiliary devices at intermediate load; | E95: Paux,gnr,Pint | F95: kW | G95: =INDEX(J95:U95,1,$C$36) -> 0.06006508023 | J95: =(+J92+J93*J81^J94)/1000 -> 0.06006508023 | K95: 0.06006508023 | L95: 0.06006508023 | M95: =(+M92+M93*M81^M94)/1000 -> 0.06006508023 | N95: =(+N92+N93*N81^N94)/1000 -> 0.06006508023 | O95: =(+O92+O93*O81^O94)/1000 -> 0.06006508023 | P95: 0.06006508023 | Q95: 0.06006508023 | R95: 0.06006508023 | S95: 0.1 | T95: 0.07 | U95: 0.05
E96: C7 | F96: W | J96: 15 | K96: 15 | L96: 15 | M96: 15 | N96: 15 | O96: 15 | P96: 15 | Q96: 15 | R96: 15
E97: C8 | F97: W | J97: 0 | K97: 0 | L97: 0 | M97: 0 | N97: 0 | O97: 0 | P97: 0 | Q97: 0 | R97: 0
E98: n | F98: - | J98: 0 | K98: 0 | L98: 0 | M98: 0 | N98: 0 | O98: 0 | P98: 0 | Q98: 0 | R98: 0
A99: stand-by power consumption of auxiliary devices; | E99: Paux,gnr,P0 | F99: kW | G99: =INDEX(J99:U99,1,$C$36) -> 0.015 | J99: =(+J96+J97*J85^J98)/1000 -> 0.015 | K99: 0.015 | L99: 0.015 | M99: 0.015 | N99: 0.015 | O99: 0.015 | P99: 0.015 | Q99: 0.015 | R99: 0.015 | S99: 0 | T99: 0 | U99: 0
A100: auxiliary power when the generation system is inactive | E100: Paux,off | F100: kW | G100: =INDEX(J100:U100,1,$C$36) -> 0 | J100: 0 | K100: 0 | L100: 0 | M100: 0 | N100: 0 | O100: 0 | P100: 0 | Q100: 0 | R100: 0 | S100: 0 | T100: 0 | U100: 0
A101: minimum operating boiler temperature. | E101: θgnr,min | F101: °C | G101: =INDEX(J101:U101,1,$C$36) -> 30 | J101: 50 | K101: 30 | L101: 0 | M101: 50 | N101: 30 | O101: 0 | P101: 50 | Q101: 50 | R101: 50 | S101: 50 | T101: 50 | U101: 50
A102: Recoverable fraction of stand-by losses | E102: fgnr,env | F102: - | G102: =INDEX(J102:U102,1,$C$36) -> 0.5 | J102: 0.5 | K102: 0.5 | L102: 0.5 | M102: 0.5 | N102: 0.5 | O102: 0.5 | P102: 0.5 | Q102: 0.5 | R102: 0.5 | S102: 0.5 | T102: 0.5 | U102: 0.5
A104: correction factor of full-load efficiency; | E104: fcorr,Pn | F104: - | G104: =INDEX(J104:U104,1,$C$36) -> 0.04 | J104: 0.04 | K104: 0.04 | L104: 0.2 | M104: 0.04 | N104: 0.04 | O104: 0.2 | P104: 0.04 | Q104: 0.04 | R104: 0.1 | S104: 0.04 | T104: 0.04 | U104: 0.04
A105: correction factor of intermediate load efficiency; | E105: fcorr,Pint | F105: - | G105: =INDEX(J105:U105,1,$C$36) -> 0.05 | J105: 0.05 | K105: 0.05 | L105: 0.2 | M105: 0.05 | N105: 0.05 | O105: 0.2 | P105: 0.05 | Q105: 0.05 | R105: 0.05 | S105: 0.05 | T105: 0.05 | U105: 0.05
A107: generator average water temperature at test conditions for full load; | E107: θgnr,test,Pn | F107: °C | G107: =INDEX(J107:U107,1,$C$36) -> 70 | J107: 70 | K107: 70 | L107: 70 | M107: 70 | N107: 70 | O107: 70 | P107: 70 | Q107: 70 | R107: 70 | S107: 70 | T107: 70 | U107: 70
A108: generator average water temperature at test conditions for intermediate load; | E108: θgnr,test,Pint | F108: °C | G108: =INDEX(J108:U108,1,$C$36) -> 40 | J108: 50 | K108: 40 | L108: 30 | M108: 50 | N108: 40 | O108: 30 | P108: 50 | Q108: 50 | R108: 50 | S108: 50 | T108: 50 | U108: 50
A109: difference between mean boiler temperature and test room temperature in test conditions; | E109: Dθtest,P0 | F109: °C | G109: =INDEX(J109:U109,1,$C$36) -> 50 | J109: 50 | K109: 50 | L109: 50 | M109: 50 | N109: 50 | O109: 50 | P109: 50 | Q109: 50 | R109: 50 | S109: 50 | T109: 50 | U109: 50
A111: part of the auxiliary energy recovered | E111: frvd,aux | F111: - | G111: =INDEX(J111:U111,1,$C$36) -> 0.75 | J111: 0.75 | K111: 0.75 | L111: 0.75 | M111: 0.75 | N111: 0.75 | O111: 0.75 | P111: 0.75 | Q111: 0.75 | R111: 0.75 | S111: 0.75 | T111: 0.75 | U111: 0.75
A112: part of the nominal electrical power not transmitted to the distribution sub-system | E112: frbl,aux | F112: - | G112: =INDEX(J112:U112,1,$C$36) -> 0.25 | J112: 0.25 | K112: 0.25 | L112: 0.25 | M112: 0.25 | N112: 0.25 | O112: 0.25 | P112: 0.25 | Q112: 0.25 | R112: 0.25 | S112: 0.25 | T112: 0.25 | U112: 0.25
A117: System design data
A118: Installation room temperature; | E118: qi,brm | F118: °C | G118: 15
A119: Temperature reduction factor of install. room | E119: bbrm | F119: - | G119: 0.7

Sheet Input_series
A1: Load here the value of input variables for each time-step (time series) Set the number of input data for each time steps and the number of time step before running The macro from sheet "Output series". Local constant data may be input via the sheets "Constants"
A3: Time series for data input
A4: Settings
A5: Number of input data | C5: 5
A6: Number of time steps | C6: 12
A8: Description | B8: Generation output | C8: Calculation interval duration | D8: Operation time | E8: Boiler average water temperature | F8: Boiler return water temperature | G8: External temperature
A9: Symbol | B9: QH;gen;out | C9: tci | D9: tgnr | E9: ϑgnr;w;m | F9: ϑgnr;w;r | G9: ϑext
A10: Unit | B10: kWh | C10: h | D10: h | E10: °C | F10: °C | G10: °C
A13: Time stamp | D13: VALUES
A14: 1 | B14: 32000 | C14: 744 | D14: 710 | E14: 65 | F14: =+E14-10 -> 55 | G14: 3
A15: 2 | B15: 25000 | C15: =+C14 -> 744 | D15: =+D14 -> 710 | E15: 60 | F15: =+E15-10 -> 50 | G15: 7
A16: 3 | B16: 12000 | C16: =+C15 -> 744 | D16: =+D15 -> 710 | E16: 55 | F16: 45 | G16: 12
A17: 4 | B17: 5000 | C17: 744 | D17: 710 | E17: 50 | F17: 40 | G17: 15
A18: 5 | B18: 2000 | C18: 744 | D18: 710 | E18: 50 | F18: 40 | G18: 18
A19: 6 | B19: 1500 | C19: 744 | D19: 710 | E19: 50 | F19: 40 | G19: 21
A20: 7 | B20: 1200 | C20: 744 | D20: 710 | E20: 50 | F20: 40 | G20: 24
A21: 8 | B21: 1600 | C21: 744 | D21: 710 | E21: 50 | F21: 40 | G21: 23
A22: 9 | B22: 8000 | C22: 744 | D22: 710 | E22: 55 | F22: 45 | G22: 20
A23: 10 | B23: 16000 | C23: 744 | D23: 710 | E23: 60 | F23: 50 | G23: 15
A24: 11 | B24: 21000 | C24: 744 | D24: 710 | E24: 65 | F24: 55 | G24: 9
A25: 12 | B25: 28000 | C25: 744 | D25: 710 | E25: 70 | F25: 60 | G25: 4

Sheet Method_input
A1: THIS IS A MANDATORY SHEET All input data for the method shall be listed here. In the simplest version, values for data input in column D (both green and blue background) may be inserted manually. Varying data (green background) can be fed from the "input_series" sheet. In this sample data sheet, product data (blue background) is linked to a sample catalogue built in the "Detailed_input" sheet
A4: Name | B4: Symbol | C4: Software name | D4: Unit | E4: Value | F4: Range | G4: Origin | H4: Varying | I4: Notes
A5: Operating conditions data
A6: Required thermal energy to extraction by refrigeration unit | B6: QC,gen,in,req | C6: Q_C_gen_in_req | D6: kWh | E6: 100 | F6: 0...∞ | G6: M4-1 | H6: Yes | I6: Thermal energy of cooling
A7: Required thermal energy for recovery | B7: QC,gen,out,req | C7: Q_C_gen_out_req | D7: kWh | E7: 0 | G7: M4-1 | H7: Yes
A8: Cooling generation operation time interval | B8: tC,gen,op | C8: t_C_gen_op | D8: h | E8: 1 | F8: 0…8760 | G8: M4-1 | H8: Yes | I8: time when the cooling generation system is working
A9: Ambient air temperature | B9: ϑe | C9: theta_e | D9: °C | E9: 33 | F9: -50…+50 | G9: M1-13 | H9: Yes
A10: Ambient air wet-bulb temperature | B10: ϑe;wb | C10: theta_e_wb | D10: °C | E10: 21 | F10: -50…+50 | G10: M1-13 | H10: Yes
A11: Required cooling generation output temperature | B11: ϑC;gen;req;out | C11: theta_C_gen_req_out | D11: °C | E11: 6 | F11: -50…+50 | G11: M4-1 | H11: Yes
A12: Internal air temperature | B12: ϑi | C12: theta_i | D12: °C | E12: 20 | F12: 0…30 | G12: M2-2 | H12: Yes
A13: Electrical power for control, actors, sensors, etc. | B13: Pctrl;el;j | C13: P_ctrl_el_j | D13: kW | E13: 0.1 | F13: 0...∞ | G13: local | H13: Yes | I13: of jth component, at the moment it is just the sum
A14: Part-load factor at particular part-load stage | B14: fC,PL,k | C14: f_C_PL_k | D14: 1 | E14: 0.9 | F14: List | G14: local | H14: Yes | I14: tabulated in annex B, Tables B.11, B.12, and B.13; or to be inserted here from product data
A15: Energy efficiency correction factor | B15: fEER;corr | C15: f_EER_corr | D15: 1 | E15: 1 | F15: 0...∞ | G15: local | H15: Yes
A16: Free-cooling factor | B16: fhr,fc | C16: f_hr_fc | D16: 1 | E16: 1 | F16: List | G16: local | H16: Yes | I16: to be taken from Table B.16
A17: Electrical free-cooling factor | B17: fhr,fc,el | C17: f_hr_fc_el | D17: 1 | E17: 1 | F17: List | G17: local | H17: Yes | I17: to be taken from Table B.16
A18: Multiple-generator factor | B18: fC,mult | C18: f_C_mult | D18: 1 | E18: 1 | F18: List | G18: local | H18: Yes | I18: to be taken from Table B.17
A19: Electrical heat rejection part-load factor | B19: fhr,PL,el | C19: f_hr_PL_el | D19: 1 | E19: 0.8 | F19: List | G19: local | H19: Yes | I19: to be taken from Table B.14
A20: Absorption type system part-load value | B20: PLVabs | C20: PLV_abs | D20: 1 | F20: List | G20: local | H20: Yes | I20: to be taken from Section B.2.3.2
A22: Product data
A23: Product description data
A24: Refrigeration system type | B24: REFR_TYPE | C24: REFR_TYPE | E24: WTR_CLG_CHLL | F24: List | G24: Local | H24: No | I24: air-cooled RAC, air-cooled chiller and water-cooled chiller system
A25: Cooling generation system type | B25: GEN_TYPE | C25: GEN_TYPE | E25: COMP | F25: List | G25: Local | H25: No | I25: compression, absorption type
A26: Compressor type | B26: COMP_TYPE | C26: COMP_TYPE | E26: PSTN | F26: List | G26: Local | H26: No | I26: piston, scroll, screw, centrifugal compressor
A27: Compressor control type | B27: COMP_CTRL_TYPE | C27: COMP_CTRL_TYPE | E27: FIXED | F27: List | G27: Local | H27: No | I27: fixed capacity, staged capacity, variable capacity by inverter, variable capacity by other means
A28: Room air conditioning system zining | B28: AIR_CLG_RAC_ZONE_TYPE | C28: AIR_CLG_RAC_ZONE_TYPE | F28: List | G28: Local | H28: No | I28: single, multiple zones
A29: Air-cooled heat rejection | B29: AIR_CLG_HEAT_REJ | C29: AIR_CLG_HEAT_REJ | E29: EXTERNAL | F29: List | G29: Local | H29: No | I29: internal, external heat rejection
A30: Heat rejection system type | B30: HEAT_REJ_TYPE: | C30: HEAT_REJ_TYPE | E30: WET | F30: List | G30: Local | H30: No | I30: dry, wet, and hybrid
A33: Product technical data
A34: Nominal thermal power of the refrigeration unit | B34: ΦC;gen;n | C34: Phi_C_gen_n | D34: kW | E34: 200 | F34: 0...∞ | G34: M4-3 | H34: No
A35: Nominal thermal power of heat rejection system | B35: Φhr;n | C35: Phi_hr_n | D35: kW | E35: 250 | F35: 0...∞ | G35: M4-3 | H35: No | I35: for all heat rejection systems
A36: Nominal thermal power of heat rejection system in dry operation mode | B36: Φhr;n;dry | C36: Phi_hr_n_dry | D36: kW | E36: 15 | F36: 0...∞ | G36: M4-3 | H36: No | I36: for hybrid systems only in dry operation mode
A37: Nominal energy efficiency ratio | B37: EERn | C37: EER_n | D37: 1 | E37: 4.5 | F37: 0...∞ | G37: EN 14511 | H37: No | I37: for compression type refrigeration systems
A38: Nominal heat ratio | B38: ζn | C38: zeta_n | D38: 1 | F38: 0...∞ | G38: ??? | H38: No | I38: for absorption type refrigeration systems
A39: Ambient temperature for air cooled system nominal energy efficiency ratio | B39: ϑe;n | C39: theta_e_n | D39: °C | E39: 35 | F39: -50…+50 | G39: EN 14511 | H39: No
A40: Internal temperature for air cooled system nominal energy efficiency ratio | B40: ϑi;n | C40: theta_i_n | D40: °C | E40: 20 | F40: 0…30 | G40: EN 14511 | H40: No
A41: Required cooling generation output temperature at nominal conditions | B41: ϑC;gen;req;out;n | C41: theta_C_gen_req_out_n | D41: °C | E41: 7 | F41: -50…+50 | G41: M4-1 | H41: No
A42: Reference ambient temperature for air cooled system | B42: ϑe;ref | C42: theta_e_ref | D42: °C | E42: 33 | F42: -50…+50 | G42: local | H42: No
A43: Reference heat rejection input cooling water | B43: ϑC;wat;hr;in;ref | C43: theta_W_hr_in_ref | D43: °C | E43: 33 | F43: 20…50 | G43: local | H43: No | I43: input into heat rejection
A44: Reference heat rejection output cooling water | B44: ϑC;wat;hr;out;ref | C44: theta_W_hr_out_ref | D44: °C | E44: 28 | F44: 20…50 | G44: local | H44: No | I44: output
A45: Nominal heat rejection input cooling water | B45: ϑC;wat;hr;in;n | C45: theta_W_hr_in_n | D45: °C | E45: 35 | F45: 20…50 | G45: EN 14511 | H45: No | I45: output
A46: Reference heat rejection input cooling water | B46: ϑC;wat;hr;in;limit | C46: theta_W_hr_in_limit | D46: °C | E46: 20 | F46: 20…50 | G46: local | H46: No | I46: input into heat rejection
A47: Evaporator temperature difference | B47: Δϑevap | C47: Delta_theta_evap | D47: K | E47: 6 | F47: 0...∞ | G47: local | H47: No
A48: Condenser temperature difference | B48: Δϑcond | C48: Delta_theta_cond | D48: K | E48: 4 | F48: 0...∞ | G48: local | H48: No
A49: Specific electrical energy for heat rejection | B49: phr;el | C49: p_hr_el | D49: kW/kW | E49: 0.018 | F49: 0...∞ | G49: local | H49: No | I49: to be taken from Table B.8 | J49: air | K49: water
A50: Specific electrical energy for distribution | B50: pdist;el | C50: p_dist_el | D50: kW/kW | E50: 0.025 | F50: 0...∞ | G50: TC228 | H50: No | J50: dry | K50: dry | L50: wet
A51: Coefficient | B51: a0 | C51: a_0 | D51: 1 | E51: 2.0164 | F51: List | G51: local | H51: Yes | I51: to be taken from Table B.15 | J51: 1 | K51: 2.64 | L51: 2.0164
A52: Coefficient | B52: a1 | C52: a_1 | D52: 1/°C | E52: -0.0307 | F52: List | G52: local | H52: Yes | I52: to be taken from Table B.15 | J52: 0 | K52: -0.07753 | L52: -0.0307
A53: Coefficient | B53: a2 | C53: a_2 | D53: 1/°C^2 | E53: 0 | F53: List | G53: local | H53: Yes | I53: to be taken from Table B.15 | J53: 0 | K53: 0.00083 | L53: 0
A54: Coefficient for heat rejection | B54: b0 | C54: b_0 | D54: 1 | E54: 0.444 | F54: List | G54: local | H54: Yes | I54: to be taken from Table B.9 | J54: 0.417 | K54: 0.417 | L54: 0.444
A55: Coefficient for heat rejection | B55: b1 | C55: b_1 | D55: 1/°C | E55: 0.0048 | F55: List | G55: local | H55: Yes | I55: to be taken from Table B.9 | J55: 0 | K55: 0 | L55: 0.0048
A57: System design data
A58: Process design
A59: Cooling generation temperature control | B59: CLG_GEN_TMP_CTRL | C59: CLG_GEN_TMP_CTRL | E59: TRUE | F59: List | G59: Local | H59: No | I59: true, false
A60: Multiple cooling generator arrangement | B60: CLGL_GEN_ARR | C60: CLG_GEN_ARR | E60: SINGLE | F60: List | G60: Local | H60: Yes | I60: single, sequential, parallel
A61: Heat rejection control | B61: HEAT_REJ_CTRL | C61: HEAT_REJ_CTRL | E61: VAR_TEMP | F61: List | G61: Local | H61: No | I61: no control, const. cooling water temperature, variable cooling water temperature
A63: Control type data
A64: Hybrid heat rejection control | B64: HBRD_HEAT_REJ_CTRL | C64: HBRD_HEAT_REJ_CTRL | F64: List | G64: Local | H64: No | I64: dry, wet operation
A65: Constants
A66: Absolute temperature | B66: T0,abs | C66: T_0_abs | E66: 273.15 | G66: local | H66: no

Sheet Method_calculation
A1: THIS IS A MANDATORY SHEET One time step calculation shall be described here. For each calculation step (= 1 row) data for the formula in column D shall be taken from the "Method_input" sheet or previous calculation steps. Include in the column "Formula ref" its number in the standard text. The example is based on EN 15316-4-1:2008 Copy and paste a copy of the equation into column "Formula" Use the column note for information on the calculation
A3: Description | B3: Symbol | C3: Unit | D3: Value | E3: Formula ref | F3: Formula | G3: Notes
A4: Operating conditions calculation
A5: part-load value | B5: PLV | D5: =D9*D19*Method_input!E16*Method_input!E18 -> 1.108623212 | E5: 29
A6: Cooling generation part-load operation
A7: part-load factor of required cooling energy demand | B7: fC;PL | D7: =Method_in/Method_input!E8/Method_input!E34 -> 0.5 | E7: 30
A8: part-load stage | B8: k | D8: =MIN(ROUND(D7,1),1) -> 0.5 | E8: 31
A9: part-load factor | B9: fC;PL;k | D9: =IF(D7<0.05,1,Method_input!E14) -> 0.9 | E9: 32 | G9: from table or known from product data
A10: thermal energy extraced by the refrigeration unit | B10: QC;gen;in | C10: kWh | D10: =IF(D7<=1,Method_in,Method_input!E34*Method_input!E8) -> 100 | E10: 33.34 | G10: Method output
A11: part-load factor of covered cooling energy demand | B11: fC;PL;cvd | D11: =MIN(1,D10/Method_in) -> 1 | E11: 35 | G11: Method output
A12: Cooling generator energy efficiency ratio temperature correction
A13: Cooling generator energy efficiency ration temperature correction factor | B13: fEER;corr | D13: =((Method_input!E66+Method_input!E11-Method_input!E47)/((Method_input!E66+D16+Method_input!E48)-(Method_input!E66+Method_input!E11-Method_input!E47)))/((Method_input!E66+Method_input!E41-Method_input!E47)/((Method_input!E66+D17+Method_input!E48)-(Method_input!E66+Method_input!E41-Method_input!E47))) -> 1.023280804 | E13: 36
A14: logical relation for air-cooling | D14: =IF(OR(Method_input!E24="AIR_CLG_CHLL", Method_input!E24="AIR_CLG_RAC"),TRUE,FALSE) -> FALSE | G14: they are mutually exclusive | H14: This line is not required in an efficient software implementation.
A15: logical relation for water-cooling | D15: =IF(Method_input!E24="WTR_CLG_CHLL",TRUE,FALSE) -> TRUE | G15: they are mutually exclusive | H15: This line is not required in an efficient software implementation.
A16: Required heat rejection input temperature | B16: ϑC;gen;hr;req;in;ref | C16: °C | D16: =IF(D14,IF(Method_input!E29="EXTERNAL",Method_input!E42,Method_input!E42),Method_input!E43) -> 33 | E16: 37-39
A17: Required heat rejection input temperature at nominal conditions | B17: ϑC;gen;hr;req;in;n | C17: °C | D17: =IF(D14,IF(Method_input!E29="EXTERNAL",Method_input!E39,Method_input!E40),Method_input!E45) -> 35 | E17: 37-39
A18: Heat rejection part-load operation
A19: part-load factor of the heat rejection system | B19: fhr,PL | D19: =D20*D20*Method_input!E53+D20*Method_input!E52+Method_input!E51 -> 1.231803569 | E19: 40
A20: temperature to be inserted in Eq. (34) | B20: ϑ | C20: °C | D20: =IF(D14,Method_input!E9,D30) -> 25.55688699 | E20: 41,47
A21: Air-cooled systems
A22: recoverable thermal energy | B22: QC;gen;out;rbl | C22: kWh | D22: =IF(D14,0,"not avail.") -> not avail. | E22: 43 | G22: Method output
A23: temperature level of recoverable heat | B23: ϑC;gen;out;rbl | C23: °C | D23: =IF(D14,"not defined","not defined") -> not defined | E23: 44 | G23: Method output
A24: thermal energy to be transferred through heat rejection system | B24: Qhr;out | C24: kWh | D24: =IF(D14,IF(Method_input!E25="COMP",Method_calculation!D10*(1+1/(Method_input!E37*Method_calculation!D9*D13)),Method_calculation!D10*(1+1/(Method_input!E38*Method_calculation!D9))),"not avail.") -> not avail. | E24: 45,46
A26: Water-cooled systems
A27: cooling water inlet temperature (HEAT_REJ_CTRL="NO_CTRL" | B27: ϑW;hr;in | C27: °C | D27: =IF(D15,D31+D39/Method_input!E8/Method_input!E35*(Method_input!E43-Method_input!E44),"not avail.") -> 25.55688699 | E27: 48 | H27: This line is not required in an efficient software implementation.
A28: cooling water inlet temperature (HEAT_REJ_CTRL="CNST_TEMP" | B28: ϑW;hr;in | C28: °C | D28: =IF(D15,Method_input!E43,"not avail.") -> 33 | E28: 48 | H28: This line is not required in an efficient software implementation.
A29: cooling water inlet temperature (HEAT_REJ_CTRL="VAR_TEMP") | B29: ϑW;hr;in | C29: °C | D29: =IF(D15,MAX(Method_input!E46,D31+D39/Method_input!E8/Method_input!E35*(Method_input!E43-Method_input!E44)),"not avail.") -> 25.55688699 | E29: 48 | H29: This line is not required in an efficient software implementation.
A30: cooling water inlet temperature | B30: ϑW;hr;in | C30: °C | D30: =IF(Method_input!E61="NO_CTRL",Method_calculation!D27,IF(Method_input!E61="CNST_TEMP",Method_calculation!D28,Method_calculation!D29)) -> 25.55688699 | E30: 48 | G30: considering if-statement
A31: cooling water outlet temperature | B31: ϑW;hr;out | C31: °C | D31: =IF(D15,IF(D32,D30-D40*(D30-Method_input!E9),D30-D40*(D30-Method_input!E10)),"not avail.") -> 23.07429496 | E31: 49, 50 | G31: Method output
A32: logical relation for dry heat rejection | D32: =IF(D15,OR(Method_input!E30="DRY",AND(Method_input!E30="HBRD",Method_calculation!D34="HBRD_DRY")),"") -> FALSE | F32: HEAT_REJ_TYPE=WET or (HEAT_REJ_TYPE=HBRD and HBRD_HEAT_REJ_CTRL=HBRD_WET) | G32: for Eq. (42) in order to keep XLS clear | H32: This line is not required in an efficient software implementation.
A33: logical relation for wet heat rejection | D33: =IF(D15,OR(Method_input!E30="WET",AND(Method_input!E30="HBRD",Method_calculation!D34="HBRD_WET")),"") -> TRUE | F33: HEAT_REJ_TYPE=DRY or (HEAT_REJ_TYPE=HBRD and HBRD_HEAT_REJ_CTRL=HBRD_DRY) | G33: for Eq. (43) in order to keep XLS clear | H33: This line is not required in an efficient software implementation.
A34: hybrid heat rejection control mode | D34: =IF(D15,IF(Method_input!E30="HBRD",IF(D39>Method_input!E36*Method_input!E8,"HBRD_WET","HBRD_DRY"),"no hybrid"),"") -> no hybrid | E34: 51
A35: cooling water outlet temperature difference | D35: =IF(D15,D30-D36,"") -> -0.0001130127608 | F35: Has to be made zero by tuning D36: use <ctrl>+i to iterate | G35: XLS trick in order to solve Eqs. D15 and D23 iteratively | H35: This line is not required in an efficient software implementation.
A36: cooling water inlet temperature | B36: ϑW;hr;in | C36: °C | D36: 25.557 | H36: Has to be adjusted manually.
A37: recoverable thermal energy | B37: QC;gen;out;rbl | C37: kWh | D37: =IF(D15,IF(Method_input!E25="COMP",Method_calculation!D10*(1+1/(Method_input!E37*Method_calculation!D9*D13)),Method_calculation!D10*(1+1/(Method_input!E38*Method_calculation!D9))),"") -> 124.1296015 | E37: 52,53 | G37: Method output
A38: temperature level of recoverable heat | B38: ϑC;gen;out;rbl | C38: °C | D38: =D30 -> 25.55688699 | E38: 54 | G38: Method output
A39: thermal energy to be transferred through heat rejection system | B39: Qhr;out | C39: kWh | D39: =IF(D15,MAX(D37-Method_input!E7,0),"") -> 124.1296015 | E39: 55
A40: temperature ratio of evaporation | B40: ηe | D40: =IF(D15,Method_input!E55*Method_input!E10+Method_input!E54,"") -> 0.5448 | E40: Table B.9
A41: Energy calculation: per time interval
A42: electrical cooling energy input (for compression type systems) | B42: EC;gen;el;in | C42: kWh | D42: =IF(Method_input!E25="COMP",D10/D5/Method_input!E37/D13,0) -> 19.58883876 | E42: 56 | G42: Method output
A43: thermal cooling energy input (for absorption type systems) | B43: QH;C;gen;in | C43: kWh | D43: =IF(Method_input!E25="ABS",D10/Method_input!E20/Method_input!E38,"not avail.") -> not avail. | E43: 57 | G43: Method output
A44: energy demand for heat rejection | B44: Whr,el,in | C44: kWh | D44: =IF(D14,0,D39*Method_input!E17*Method_input!E49*Method_input!E19) -> 1.787466262 | E44: 58,59
A45: energy demand for control, actors, sensors, etc. | B45: Wctrl,el,in | C45: kWh | D45: =Method_input!E8*Method_input!E13 -> 0.1 | E45: 60
A46: energy demand for heat rejection water distribution | B46: Wdist,hr,el,in | C46: kWh | D46: =IF(D14,0,Method_calculation!D39*Method_input!E50) -> 3.103240038 | E46: 61,62
A47: auxiliary energy demand | B47: Waux,el,in | C47: kWh | D47: =D44+D45+D46 -> 4.990706299 | E47: 63 | G47: additional information
A48: energy efficiency ratio | B48: EER | C48: 1 | D48: =IF(Method_input!E25="COMP",D10/(Method_calculation!D42+Method_calculation!D47),"not avail.") -> 4.068423551 | E48: 64 | G48: additional information
A49: heat ratio | B49: ς | C49: 1 | D49: =IF(Method_input!E25="ABS",Method_calculation!D10/D43,"not avail.") -> not avail. | E49: 65 | G49: additional information

Sheet Method_output
A1: THIS IS A MANDATORY SHEET Output of one step calculation shall be indicated here. Each cell in the column value shall be a reference to a single cell in the "Method_calculation" sheet. The macro will take the calculation step results and fill the values table in the "Output_series" sheet.
A4: Name | B4: Symbol | C4: Software name | D4: Unit | E4: Value | F4: Range | G4: Intended destination | H4: Varying | I4: Notes
A5: Energy flow data
A6: Thermal energy to be extracted by refrigeration system | B6: QC,gen,in | C6: Q_C_gen_in | D6: kWh | E6: =Method_calculation!D10 -> 100 | F6: 0...∞ | G6: M4-6 | H6: Yes | I6: Thermal energy of cooling
A7: Cooling generation electrical energy input | B7: EC,gen,el;in | C7: E_C_gen_el_in | D7: kWh | E7: =Method_calculation!D42 -> 19.58883876 | F7: 0...∞ | G7: M1-9, M4-4 | H7: Yes | I7: Electrical energy required by the refrigeration unit
A8: Recoverable thermal energy | B8: QC,gen,out,rbl | C8: Q_C_gen_out_rbl | D8: kWh | E8: =IF(Method_calculation!D14,Method_calculation!D22,Method_calculation!D37) -> 124.1296015 | G8: M4-1 | H8: Yes
A9: Temperature level of heat t.b. rejected | B9: ϑC,gen,out,max | C9: theta_C_gen_out_max | D9: °C | E9: =Method_calculation!D38 -> 25.55688699 | G9: M3-1 | H9: Yes | I9: temperature level of recoverable heat | J9: Hit <ctrl>+i to iterate for correct value
A10: Cooling generation heat input | B10: QH;C,gen;abs;in;req | C10: Q_H_C_gen_abs_in_req | D10: kWh | E10: =Method_calculation!D43 -> not avail. | G10: M3-1 | H10: Yes | I10: Thermal energy required by the absorption type refrigeration unit
A11: Auxiliary electrical energy input | B11: WC;aux,gen;in | C11: W_C_aux_gen_in | D11: kWh | E11: =Method_calculation!D47 -> 4.990706299 | F11: 0...∞ | G11: M1-9, M4-4 | H11: Yes
A12: Operating condition data
A13: Part-load factor of covered cooling energy demand | B13: fC,PL,cvd | C13: f_C_PL_cvd | D13: - | E13: =Method_calculation!D11 -> 1 | F13: 0…1 | G13: M4-1 | H13: Yes | I13: for quality control
A14: Hybrid heat rejection control | B14: HBRD_HEAT_REJ_CTRL | C14: HBRD_HEAT_REJ_CTRL | E14: =Method_calculation!D34 -> no hybrid | F14: List | G14: M4-1 | H14: Yes | I14: dry and wet operation modes
A15: Other data

Sheet Output_series
A1: Here a time series can be generated to test the method with variable input data. Data input series must be inserted in the "input_series" sheet before.
A3: Time series for data output
A4: Settings
A5: Number of output data | C5: 3
A7: This table will be filled automatically via a macro scanning the "input_series" and performing for each time step the calculation defined in the "Method_calculation" sheet.
A8: Press CLEAR OUTPUT to reset output series
A9: Press "Run method" to start calculation of individual time steps
B13: Generation input | C13: Recoverable heat | D13: Total auxiliary energy
B14: kWh | C14: kWh | D14: kWh
A15: Symbol | B15: EH,gen,in | C15: QH,gen,rbl | D15: WH,gnr,aux
A16: Destination
A17: Time stamp | D17: VALUES
A18: 1 | E18: 0
A19: 2 | E19: 0
A20: 3 | E20: 0
A21: 4 | E21: 0
A22: 5 | E22: 0
A23: 6 | E23: 0
A24: 7 | E24: 0
A25: 8 | E25: 0
A26: 9 | E26: 0
A27: 10 | E27: 0
A28: 11 | E28: 0
A29: 12 | E29: 0

Sheet Greek_to_soft
B2: Greek | C2: Software | D2: Greek capital | E2: Software
B3: α | C3: alpha | D3: (A) | E3: A
B4: β | C4: beta | D4: (B) | E4: B
B5: γ | C5: gamma | D5: Γ | E5: Gamma
B6: δ | C6: delta | D6: Δ | E6: Delta
B7: ε | C7: epsilon | D7: (Ε) | E7: E
B8: ζ | C8: zeta | D8: (Ζ) | E8: Z
B9: η | C9: eta | D9: (Η) | E9: H
B10: ϑ (var. θ) | C10: theta | D10: Θ | E10: Theta
B11: (ι) | C11: iota | D11: (Ι) | E11: I
B12: (κ) | C12: kappa | D12: (Κ) | E12: K
B13: λ | C13: lambda | D13: Λ | E13: Lambda
B14: μ | C14: mu | D14: (Μ) | E14: M
B15: (ν) | C15: nu | D15: (Ν) | E15: N
B16: ξ | C16: xi | D16: Ξ | E16: XI
B17: (ο) | C17: omicron | D17: (Ο) | E17: O
B18: π | C18: pi | D18: Π | E18: Pi
B19: ρ | C19: rho | D19: (Ρ) | E19: P
B20: σ (var. ς) | C20: sigma | D20: Σ | E20: Sigma
B21: (τ) | C21: tau | D21: (Τ) | E21: T
B22: (υ) | C22: upsilon | D22: Υ | E22: Y
B23: φ (var. ϕ) | C23: phi | D23: Φ | E23: Phi
B24: (χ) | C24: chi | D24: (Χ) | E24: X
B25: ψ | C25: psi | D25: Ψ | E25: Psi
B26: ω | C26: omega | D26: Ω | E26: Omega
C28: Do not use these letters: risk of confusion with latin alphabet

Sheet Symbols
D2: Symbol | E2: Meaning | F2: Unit
D3: A | E3: area | F3: m²
D4: b | E4: temperature reduction factor | F4: -
D5: C | E5: heat capacity | F5: J/K a)
D6: c | E6: specific heat capacity | F6: J/(kg•K) a)
D7: c | E7: coefficient d) | F7: various
D8: d | E8: thickness | F8: m
D9: D | E9: diameter | F9: m
D10: E | E10: energy in general e) | F10: kg, m3, (kW•h), J a) b)
D11: EP | E11: energy performance indicator | F11: J/(m2•a),
F12: kg/(m2•a),
F13: €/(m2•a) a) c)
D14: f | E14: factor (e.g. primary energy factor, policy factor, …) | F14: – d)
D15: H | E15: heat transfer coefficient | F15: W/K
D16: H | E16: calorific value | F16: MJ/kg
D17: h | E17: surface coefficient of heat transfer | F17: W/(m²•K)
D18: I | E18: solar irradiance | F18: W/m2
D19: k | E19: coefficient | F19: d)
D20: K | E20: CO2 emission coefficient | F20: kg/J; g/(kW•h)
D21: L | E21: length | F21: m
D22: m | E22: mass (e.g. quantity of CO2 emissions) | F22: kg
D23: n | E23: air exchange rate | F23: 1/h
D24: N | E24: number of items (integer only) | F24: –
D25: O | E25: occupancy | F25: persons
D26: p | E26: pressure | F26: Pa
D27: P | E27: power in general including electrical power | F27: W
D28: Q | E28: quantity of heat | F28: J, (kW•h) a)
D29: q | E29: volumetric airflow rate | F29: m3/s
D30: q | E30: heat flow density | F30: W/m²
D31: R | E31: thermal resistance | F31: m²·K/W
D32: RER | E32: renewable energy ratio | F32: –
D33: T | E33: thermodynamic temperature | F33: K
D34: t | E34: time, period of time | F34: s a)
D35: U | E35: thermal transmittance | F35: W/(m²•K)
D36: V | E36: volume | F36: m³
D37: W | E37: (electrical) auxiliary energy | F37: (kW•h), J a)
D38: x | E38: mixing ratio | F38: %kg/kg
D39: X | E39: volume fraction | F39: %
D40: X, Y | E40: any property, system, … | F40: –
D41: Δ | E41: delta (difference) prefix to be combined with symbols | F41: various
D42: h | E42: efficiency factor | F42: -
D43: φ | E43: relative humidity | F43: %
D44: ϑ | E44: Celsius temperature | F44: °C
D45: ψ | E45: linear thermal transmittance | F45: W/(m•K)
D46: Φ | E46: heat flow rate, thermal power | F46: W
D47: χ | E47: point thermal transmittance | F47: W/K
D48: ρ | E48: density | F48: kg/m³
D49: τ | E49: time constant | F49: s a)
D50: τ | E50: light transmittance | F50: ?
D51: p | E51: specific power | F51: kW/kW
D52: s | E52: number of time steps of a particular part-load stage
D53: k | E53: part-load stage
D54: … | E54: … your new symbol …
D58: a) | E58: Hours (h) may be used as the unit of time instead of seconds for all quantities involving time (i.e. for time periods as well as for air change rates), but in that case the unit of energy is (W•h) instead of J.
D59: b) | E59: The unit depends on the type of energy carrier.
D60: c) | E60: The unit depends on the indicator chosen
D61: d) | E61: Coefficients have dimensions; factors are dimensionless.
D62: e) | E62: Including primary energy and energy carriers; note that for heat the symbol Q and for auxiliary energy and work the symbol W is used.

Sheet Subs_building
B2: COMMON SUBSCRIPTS: BUILDING
B4: Level 1 | D4: Level 2 | F4: Level 3
B5: Service | D5: Building | F5: Utilised or non-utilised
B6: H | C6: heating | D6: nd | E6: need | F6: ut | G6: utilised
B7: C | C7: cooling | D7: ht | E7: heat transfer | F7: nut | G7: non-utilised
B8: W | C8: DHW | D8: tr | E8: transmission heat transfer | F8: … | G8: … your new subscript
B9: V | C9: ventilation | D9: ve | E9: ventilation heat transfer
B10: HU | C10: Humidification | D10: gn | E10: gains
B11: DHU | C11: Dehumidification | D11: sol | E11: solar
B12: L | C12: lighting | D12: int | E12: internal
B13: BAC | C13: Building automation and control | D13: sens | E13: sensible
B14: E | C14: Photovoltaic, wind | D14: lat | E14: latent
B15: XY | C15: combination of H, C, W | D15: … | E15: … your new subscript
B16: EPus | C16: EPB services
B17: nEPus | C17: non EPB services
B18: TOT | C18: total
B19: A | C19: appliances
B20: T | C20: transport
B21: … | C21: … your new subscript
B28: Please insert any new subscript in the yellow field

Sheet Subs_system
B2: COMMON SUBSCRIPTS: ENERGY EXCHANGE BETWEEN SUBSYSTEMS
B4: Level 1 | D4: Level 2 | F4: Level 3 | H4: Level 4 | J4: Level 5
B5: Service | D5: Technical building system | F5: Balance item | H5: Balance item specification | J5: Destination of recovery (service)
B6: H | C6: heating | D6: us | E6: use | F6: ls | G6: losses | H6: rbl | I6: recoverable | J6: H | K6: heating
B7: C | C7: cooling | D7: sys | E7: system | F7: aux | G7: auxiliary | H7: rvd | I7: recovered | J7: C | K7: cooling
B8: W | C8: DHW | D8: em | E8: emission | F8: in | G8: input | H8: nrbl | I8: non-recoverable | J8: W | K8: DHW
B9: V | C9: ventilation | D9: dis | E9: distribution | F9: out | G9: output | H9: nrvd | I9: non-recovered | J9: V | K9: ventilation
B10: HU | C10: Humidification | D10: sto | E10: storage | F10: e | G10: evaporative | H10: cvd | I10: covered | J10: HU | K10: Humidification
B11: DHU | C11: Dehumidification | D11: nod | E11: node | F11: rej | G11: rejected | H11: … | I11: … your new subscript | J11: DHU | K11: Dehumidification
B12: L | C12: lighting | D12: gen | E12: generation | F12: … | G12: … your new subscript | J12: L | K12: lighting
B13: BAC | C13: BAC | D13: hum | E13: humidification a | J13: BAC | K13: BAC
B14: E | C14: Photovoltaic, wind | D14: dhum | E14: dehumidification a | J14: E | K14: Photovoltaic, wind
B15: XY | C15: combination of H, C, W | D15: hp | E15: heat pump | J15: XY | K15: combination of H, C, W
B16: EPus | C16: EPBD services | D16: blr | E16: boiler | J16: EPus | K16: EPBD services
B17: nEPus | C17: non EPBD services | D17: cgn | E17: cogeneration | J17: nEPus | K17: non EPBD services
B18: TOT | C18: total | D18: ts | E18: thermal solar | J18: TOT | K18: total
B19: A | C19: appliances | D19: pv | E19: Photovoltaic | J19: A | K19: appliances
B20: T | C20: transport | D20: lrh | E20: local and radiant heaters | J20: T | K20: transport
B21: HR | C21: heat rejection | D21: … | E21: … your new subscript | J21: … | K21: … your new subscript
B22: FC | C22: free cooling
B23: … | C23: … your new subscript
B26: Please insert any new subscript in the yellow field

Sheet Subs_del_EP
B2: COMMON SUBSCRIPTS: ENERGY FLOWS AT ASSESSMENT BOUNDARY
B4: Level 1 | D4: Level 2 | F4: Level 3
B5: Type of energy flow | D5: Energy carrier | F5: Qualifier
F6: which service
B7: del | C7: delivered | D7: gas | E7: gas | F7: H | G7: heating
B8: exp | C8: exported | D8: oil | E8: oil | F8: C | G8: cooling
B9: pr | C9: produced | D9: el | E9: electricity | F9: W | G9: DHW
B10: EPus | C10: used for EPBD services | D10: wd | E10: wood | F10: V | G10: ventilation
B11: nEPus | C11: used for services other than EPBD | D11: dh | E11: district heating | F11: HU | G11: Humidification
B12: … | C12: … your new subscript | D12: dc | E12: district cooling | F12: DHU | G12: Dehumidification
D13: sf | E13: solid fuel | F13: L | G13: lighting
D14: lf | E14: liquid fuel | F14: BAC | G14: BAC
D15: bm | E15: biomass | F15: E | G15: Photovoltaic, wind
D16: sol | E16: solar heat | F16: XY | G16: combination of H, C, W
D17: pv | E17: solar electricity | F17: EPus | G17: EPBD services
D18: ah | E18: Heat from surroundings | F18: nEPus | G18: non EPBD services
D19: wnd | E19: wind | F19: TOT | G19: total
D20: cr | E20: carrier (generic) | F20: A | G20: appliances
D21: … | E21: … your new subscript | F21: T | G21: transport
F22: n | G22: nominal
F23: WB | G23: wet-bulb
F24: PL | G24: part-load
F25: … | G25: … your new subscript
F26: Qualifier
F27: Origin
F28: onst | G28: on site
F29: ofst | G29: off site
F30: nrby | G30: neardy
F31: dist | G31: distant
F32: … | G32: … your new subscript
F34: Qualifier
F35: which balance item
F36: used | G36: used in the same time step
F37: nused | G37: NOT used in the same time step
F38: rdel | G38: redelivered
F39: tmp | G39: temporary (exported)
F40: grid | G40: to/from grid
F41: … | G41: … your new subscript
B44: Level 1 | D44: Level 2 | F44: Level 3 | H44: Level 4
B45: Primary energy | D45: Type of primary energy | F45: Qualifier | H45: Energy carrier
F46: Type of energy flow
B47: P | C47: Primary | D47: tot | E47: total primary energy | F47: del | G47: delivered | H47: See level 2…3 of table above
B48: … | C48: … your new subscript | D48: ren | E48: renewable primary fraction | F48: exp | G48: exported
D49: nren | E49: non renewable primary fraction | F49: pr | G49: produced
D50: … | E50: … your new subscript | F50: … | G50: … your new subscript
F52: Qualifier
F53: Destination of energy flow
F54: EPus | G54: used for EPBD services
F55: nEPus | G55: used for services other than EPBD
F56: X | G56: Any EPB use
F57: … | G57: … your new subscript
F59: Qualifier
F60: Origin of energy flow
F61: onst | G61: on site
F62: ofst | G62: off site
F63: nrby | G63: neardy
F64: dist | G64: distant
F65: … | G65: … your new subscript
B68: Please insert any new subscript in the yellow field

Sheet Subs_other
B1: OTHER COMMON SUBSCRIPTS
B3: Level n + 1 | D3: Level n + 2 | F3: Level n + 3 | H3: Level n + 4
B4: Spatial coverage | D4: Time period | F4: How acquired | H4: Statistical
B5: B | C5: building | D5: wk | E5: weekly | F5: calc | G5: calculated | H5: avg | I5: time-average
B6: zb | C6: building zone | D6: day | E6: daily | F6: meas | G6: measured | H6: mn | I6: mean (time or space) a
B7: sp | C7: space | D7: h | E7: hourly | F7: est | G7: estimated | H7: max | I7: maximum
B8: bu | C8: building unit | D8: m | E8: monthly | F8: … | G8: … your new subscript | H8: min | I8: minimum
B9: zt | C9: thermal zone | D9: seas | E9: seasonal | H9: pk | I9: peak
B10: zxx | C10: … other zones | D10: bin | E10: bin | H10: … | I10: … your new subscript
B11: amb | C11: ambient | D11: an | E11: annual
B12: … | C12: … your new subscript | D12: … | E12: … your new subscript
B15: a mean is used for time or spatial average (to be ascertained from the context)
B17: Please insert any new subscript in the yellow field

Sheet History
B2: Date | C2: Version scope | D2: Changes, notes
B4: 2012-07-04 | C4: Issued for discussion in CTL
B5: 2012-08-24 | C5: Issued for comments in TC 371 | D5: Improved readability
B6: 2013-07-03 | C6: Revised for the toolkit
B7: 2013-11-18 | C7: Revised to include software language and references to common symbols and subscripts
